fUST/lending_fUST_20250603
["ID","MTS","AMOUNT","RATE_DAILY","PERIOD"]
[364021588,1748962232451,-420.0,0.00017473,2]
[364021590,1748962232461,-440.0,0.00017473,2]
[364021592,1748962232471,-440.0,0.00017473,2]
[364021594,1748962232480,-469.0931,0.00017747,2]
[364021596,1748962232490,-440.0,0.00017747,2]
[364021598,1748962232499,-206.81631364,0.000179,2]
[364021600,1748962232513,-285.98678675,0.00018021,2]
[364021602,1748962232523,-206.81631361,0.00018289,2]
[364021605,1748962232532,-842.5625,0.00018354,2]
[364021608,1748962232542,-206.81631361,0.00018678,2]
[364021611,1748962232552,-300.0,0.00018779,2]
[364021614,1748962232561,-206.81631361,0.00019067,2]
[364021617,1748962232571,-206.81631361,0.00019456,2]
[364021620,1748962232580,-206.81631361,0.00019844,2]
[364021623,1748962232590,-206.81631361,0.00020233,2]
[364021625,1748962232599,-207.4,0.000204,2]
[364021627,1748962232609,-164.680246,0.00020548,2]
[364021629,1748962232619,-440.0,0.00020621,2]
[364021631,1748962232628,-440.0,0.00020621,2]
[364021633,1748962232638,-440.0,0.00020621,2]
[364021635,1748962232647,-440.0,0.00020621,2]
[364021636,1748962232657,-440.0,0.00020621,2]
[364021638,1748962232666,-440.0,0.00020621,2]
[364021640,1748962232676,-206.81631361,0.00020622,3]
[364021642,1748962232685,-434.9898327,0.00020689,2]
[364021644,1748962232695,-574.03042737,0.00020895,2]
[364021646,1748962232705,-440.0,0.00020895,2]
[364021648,1748962232715,-440.0,0.00020895,2]
[364021650,1748962232725,-430.0,0.00020895,2]
[364021652,1748962232734,-440.0,0.00020999,2]
[364021654,1748962232745,-440.0,0.00020999,2]
[364021656,1748962232754,-440.0,0.00020999,2]
[364021658,1748962232764,-440.0,0.00020999,2]
[364021660,1748962232774,-440.0,0.00020999,2]
[364021662,1748962232786,-440.0,0.00020999,2]
[364021664,1748962232795,-440.0,0.00020999,2]
[364021666,1748962232804,-440.0,0.00020999,2]
[364021668,1748962232814,-440.0,0.00020999,2]
[364021670,1748962232823,-440.0,0.00020999,2]
[364021672,1748962232833,-440.0,0.00020999,2]
[364021674,1748962232843,-440.0,0.00020999,2]
[364021676,1748962232854,-420.0,0.00020999,2]
[364021678,1748962232863,-440.0,0.00020999,2]
[364021680,1748962232873,-1072.93889345,0.00021,2]
[364021682,1748962232882,-206.81631361,0.00021011,4]
[364021684,1748962232891,-688.60475384,0.0002102,2]
[364021686,1748962232901,-155.24269048,0.00021069,2]
[364021688,1748962232911,-440.0,0.00021169,2]
[364021690,1748962232920,-440.0,0.00021169,2]
[364021692,1748962232930,-430.0,0.00021273,2]
[364021694,1748962232939,-430.49,0.00021273,2]
[364021696,1748962232951,-440.0,0.00021273,2]
[364021698,1748962232962,-440.0,0.00021273,2]
[364021700,1748962232972,-440.0,0.00021273,2]
[364021702,1748962232982,-440.0,0.00021273,2]
[364021704,1748962232992,-440.0,0.00021273,2]
[364021706,1748962233001,-420.0,0.00021273,2]
[364021708,1748962233011,-440.0,0.00021273,2]
[364021710,1748962233021,-440.0,0.00021273,2]
[364021712,1748962233031,-440.0,0.00021273,2]
[364021714,1748962233040,-440.0,0.00021273,2]
[364021716,1748962233050,-206.81631361,0.000214,5]
[364021718,1748962233060,-440.0,0.00021443,2]
[364021720,1748962233071,-440.0,0.00021443,2]
[364021722,1748962233081,-440.0,0.00021547,2]
[364021724,1748962233091,-440.0,0.00021547,2]
[364021726,1748962233102,-440.0,0.00021547,2]
[364021728,1748962233112,-420.0,0.00021547,2]
[364021730,1748962233122,-420.0,0.00021547,2]
[364021732,1748962233131,-420.0,0.00021547,2]
[364021734,1748962233141,-440.0,0.00021547,2]
[364021736,1748962233151,-440.0,0.00021547,2]
[364021738,1748962233161,-420.0,0.00021547,2]
[364021740,1748962233171,-440.0,0.00021717,2]
[364021742,1748962233181,-184.98,0.00021717,2]
[364021744,1748962233193,-215.0738,0.00021769,2]
[364021746,1748962233206,-440.0,0.00021773,2]
[364021748,1748962233217,-440.0,0.00021773,2]
[364021750,1748962233227,-420.0,0.00021773,2]
[364021752,1748962233238,-440.0,0.00021773,2]
[364021754,1748962233249,-440.0,0.00021773,2]
[364021756,1748962233260,-440.0,0.00021773,2]
[364021758,1748962233271,-100.43756901,0.00021773,2]
[364021918,1748962238293,-534.82641653,0.00017027,2]
[364021920,1748962238306,-1941.11184565,0.00017027,2]
[364021923,1748962238318,-2453.54114427,0.00017027,2]
[364021925,1748962238329,-440.0,0.00020621,2]
[364021927,1748962238338,-519.41,0.00020895,2]
[364021929,1748962238348,-462.06,0.00020999,2]
[364021931,1748962238358,-339.56243099,0.00021773,2]
[364021933,1748962238367,-420.0,0.00021773,2]
[364021934,1748962238376,-440.0,0.00021773,2]
[364021937,1748962238386,-440.0,0.00021773,2]
[364021939,1748962238396,-440.0,0.00021773,2]
[364021941,1748962238405,-440.0,0.00021773,2]
[364021943,1748962238415,-440.0,0.00021773,2]
[364021945,1748962238425,-440.0,0.00021773,2]
[364021948,1748962238435,-116.180579,0.00021773,2]
[364021952,1748962238448,-323.819421,0.00021773,2]
[364021955,1748962238459,-440.0,0.00021773,2]
[364021957,1748962238468,-420.0,0.00021773,2]
[364021959,1748962238478,-440.0,0.00021773,2]
[364021961,1748962238488,-420.0,0.00021773,2]
[364021963,1748962238498,-440.0,0.00021773,2]
[364021965,1748962238507,-440.0,0.00021773,2]
[364021967,1748962238519,-440.0,0.00021773,2]
[364021969,1748962238529,-440.0,0.00021773,2]
[364021971,1748962238539,-440.0,0.00021773,2]
[364021973,1748962238549,-440.0,0.00021773,2]
[364021975,1748962238558,-440.0,0.00021773,2]
[364021977,1748962238567,-440.0,0.00021773,2]
[364021979,1748962238577,-440.0,0.00021773,2]
[364021981,1748962238586,-440.0,0.00021773,2]
[364021983,1748962238596,-440.0,0.00021773,2]
[364021985,1748962238606,-440.0,0.00021773,2]
[364021987,1748962238616,-440.0,0.00021773,2]
[364021989,1748962238626,-440.0,0.00021773,2]
[364021991,1748962238635,-440.0,0.00021773,2]
[364021993,1748962238646,-440.0,0.00021773,2]
[364021995,1748962238655,-440.0,0.00021773,2]
[364021997,1748962238669,-440.0,0.00021773,2]
[364022000,1748962238679,-440.0,0.00021773,2]
[364022002,1748962238688,-440.0,0.00021773,2]
[364022003,1748962238698,-440.0,0.00021773,2]
[364022006,1748962238709,-440.0,0.00021773,2]
[364022008,1748962238719,-440.0,0.00021773,2]
[364022010,1748962238728,-440.0,0.00021773,2]
[364022012,1748962238738,-407.13983521,0.00021773,2]
[364022014,1748962238747,-440.0,0.00021773,2]
[364022016,1748962238757,-440.0,0.00021775,2]
[364022018,1748962238767,-430.0,0.00021775,2]
[364022020,1748962238777,-430.0,0.00021775,2]
[364022022,1748962238787,-430.0,0.00021775,2]
[364022024,1748962238796,-430.0,0.00021775,2]
[364022026,1748962238805,-430.0,0.00021775,2]
[364022028,1748962238814,-430.0,0.00021775,2]
[364022030,1748962238824,-430.0,0.00021775,2]
[364022031,1748962238833,-430.0,0.00021775,2]
[364022033,1748962238842,-430.0,0.00021775,2]
[364022035,1748962238851,-430.0,0.00021775,2]
[364022037,1748962238861,-430.0,0.00021775,2]
[364022039,1748962238871,-430.0,0.00021775,2]
[364022042,1748962238881,-430.0,0.00021775,2]
[364022044,1748962238891,-367.75166967,0.00021775,2]
[364022045,1748962238900,-430.0,0.00021775,2]
[364022047,1748962238910,-528.94953731,0.00021775,2]
[364022049,1748962238919,-534.88135862,0.00021775,2]
[364022051,1748962238929,-343.22230058,0.00021775,2]
[364022053,1748962238939,-430.0,0.00021775,2]
[364022055,1748962238949,-430.0,0.00021775,2]
[364022058,1748962238959,-430.0,0.00021775,2]
[364022059,1748962238969,-430.0,0.00021775,2]
[364022062,1748962238978,-430.0,0.00021775,2]
[364022063,1748962238988,-430.0,0.00021775,2]
[364022065,1748962238998,-430.0,0.00021775,2]
[364022067,1748962239008,-430.0,0.00021775,2]
[364022070,1748962239018,-430.0,0.00021775,2]
[364022072,1748962239028,-430.0,0.00021775,2]
[364022073,1748962239037,-431.70411064,0.00021775,2]
[364022076,1748962239047,-451.81794322,0.00021775,2]
[364022078,1748962239057,-430.0,0.00021775,2]
[364022080,1748962239066,-358.33129502,0.00021775,2]
[364022081,1748962239076,-433.9319657,0.00021775,2]
[364022097,1748962239222,-430.0,0.00021775,2]
[364022099,1748962239233,-430.0,0.00021775,2]
[364022101,1748962239243,-437.59848366,0.00021775,2]
[364022103,1748962239253,-440.0,0.00021775,2]
[364022105,1748962239264,-430.0,0.00021775,2]
[364022108,1748962239275,-500.0,0.00021775,2]
[364022109,1748962239288,-500.0,0.00021775,2]
[364022112,1748962239298,-366.09294448,0.00021775,2]
[364022114,1748962239309,-500.0,0.00021775,2]
[364022116,1748962239321,-283.97291947,0.00021775,2]
[364022118,1748962239333,-440.0,0.00021775,2]
[364022120,1748962239344,-151.93960081,0.00021775,2]
[364022122,1748962239355,-430.0,0.00021776,2]
[364022124,1748962239366,-430.0,0.00021776,2]
[364022126,1748962239377,-430.0,0.00021776,2]
[364022128,1748962239387,-440.0,0.00021776,2]
[364022130,1748962239398,-440.0,0.00021776,2]
[364022132,1748962239408,-440.0,0.00021776,2]
[364022134,1748962239419,-440.0,0.00021776,2]
[364022136,1748962239431,-440.0,0.00021776,2]
[364022138,1748962239441,-440.0,0.00021776,2]
[364022140,1748962239453,-440.0,0.00021776,2]
[364022142,1748962239463,-500.0,0.00021776,2]
[364022144,1748962239474,-430.0,0.00021776,2]
[364022146,1748962239484,-440.0,0.00021776,2]
[364022148,1748962239494,-440.0,0.00021776,2]
[364022150,1748962239503,-440.0,0.00021776,2]
[364022151,1748962239515,-440.0,0.00021776,2]
[364022153,1748962239525,-440.0,0.00021776,2]
[364022155,1748962239535,-440.0,0.00021776,2]
[364022157,1748962239546,-440.0,0.00021776,2]
[364022159,1748962239556,-440.0,0.00021776,2]
[364022161,1748962239566,-420.0,0.00021776,2]
[364022162,1748962239576,-581.35018929,0.00021776,2]
[364022163,1748962239592,-420.0,0.00021776,2]
[364022164,1748962239607,-420.0,0.00021776,2]
[364022166,1748962239617,-440.0,0.00021776,2]
[364022168,1748962239626,-440.0,0.00021776,2]
[364022169,1748962239635,-430.0,0.00021776,2]
[364022171,1748962239645,-430.0,0.00021776,2]
[364022172,1748962239654,-420.0,0.00021776,2]
[364022173,1748962239664,-346.03172676,0.00021776,2]
[364022174,1748962239673,-351.62980302,0.00021776,2]
[364022175,1748962239684,-420.0,0.00021776,2]
[364022176,1748962239693,-430.0,0.00021776,2]
[364022177,1748962239705,-403.81510061,0.00021776,2]
[364022178,1748962239716,-430.0,0.00021776,2]
[364022179,1748962239726,-430.0,0.00021776,2]
[364022180,1748962239736,-430.0,0.00021776,2]
[364022181,1748962239746,-440.0,0.00021776,2]
[364022182,1748962239756,-440.0,0.00021776,2]
[364022183,1748962239766,-440.0,0.00021776,2]
[364022184,1748962239776,-470.7901076,0.00021776,2]
[364022185,1748962239786,-420.0,0.00021776,2]
[364022186,1748962239795,-440.0,0.00021776,2]
[364022187,1748962239805,-420.0,0.00021776,2]
[364022188,1748962239815,-420.0,0.00021776,2]
[364022189,1748962239825,-440.0,0.00021776,2]
[364022190,1748962239835,-440.0,0.00021776,2]
[364022191,1748962239844,-440.0,0.00021776,2]
[364022192,1748962239854,-440.0,0.00021776,2]
[364022193,1748962239863,-430.0,0.00021776,2]
[364022194,1748962239873,-436.7071302,0.00021776,2]
[364022195,1748962239883,-450.0,0.00021776,2]
[364022196,1748962239892,-440.0,0.00021776,2]
[364022197,1748962239902,-420.0,0.00021776,2]
[364022198,1748962239912,-420.0,0.00021776,2]
[364022199,1748962239922,-430.0,0.00021776,2]
[364022200,1748962239932,-430.0,0.00021776,2]
[364022201,1748962239943,-452.73193462,0.00021776,2]
[364022202,1748962239958,-440.0,0.00021776,2]
[364022203,1748962239968,-430.0,0.00021776,2]
[364022204,1748962239979,-206.81631361,0.00021789,6]
[364022206,1748962239988,-160.54,0.00021821,2]
[364022207,1748962239998,-440.0,0.00021821,2]
[364022208,1748962240008,-440.0,0.00021821,2]
[364022209,1748962240018,-440.0,0.00021821,2]
[364022210,1748962240028,-440.0,0.00021821,2]
[364022211,1748962240038,-150.0,0.00021918,2]
[364022212,1748962240049,-160.0,0.00021985,2]
[364022213,1748962240058,-229.42821335,0.00021986,2]
[364022214,1748962240068,-561.01,0.00021991,2]
[364022215,1748962240078,-1235.54,0.00022,2]
[364022216,1748962240088,-151.0,0.00022007,2]
[364022217,1748962240098,-151.0,0.00022034,2]
[364022218,1748962240108,-410.0,0.00022047,2]
[364022219,1748962240119,-430.0,0.00022047,2]
[364022220,1748962240129,-430.0,0.00022047,2]
[364022221,1748962240139,-464.01,0.00022047,2]
[364022222,1748962240149,-440.0,0.00022047,2]
[364022223,1748962240159,-440.0,0.00022047,2]
[364022224,1748962240169,-420.0,0.00022047,2]
[364022225,1748962240179,-430.0,0.00022047,2]
[364022226,1748962240190,-440.0,0.00022047,2]
[364022227,1748962240199,-440.0,0.00022047,2]
[364022228,1748962240215,-440.0,0.00022047,2]
[364022229,1748962240224,-260.67,0.00022047,2]
[364022230,1748962240235,-430.0,0.00022047,2]
[364022231,1748962240244,-369.44243843,0.00022047,2]
[364022232,1748962240254,-440.0,0.00022047,2]
[364022233,1748962240263,-270.76,0.00022047,2]
[364022234,1748962240274,-440.0,0.00022047,2]
[364022235,1748962240285,-420.0,0.00022049,2]
[364022236,1748962240294,-410.0,0.00022049,2]
[364022237,1748962240304,-410.0,0.00022049,2]
[364022238,1748962240314,-442.95941968,0.0002205,2]
[364022239,1748962240323,-430.0,0.0002205,2]
[364022240,1748962240333,-430.0,0.0002205,2]
[364022241,1748962240344,-440.0,0.0002205,2]
[364022242,1748962240354,-440.0,0.0002205,2]
[364022243,1748962240363,-294.58508279,0.0002205,2]
[364022244,1748962240373,-441.10801608,0.0002205,2]
[364022245,1748962240383,-440.0,0.0002205,2]
[364022246,1748962240393,-430.0,0.0002205,2]
[364022247,1748962240403,-430.0,0.0002205,2]
[364022248,1748962240413,-430.0,0.0002205,2]
[364022249,1748962240424,-430.0,0.0002205,2]
[364022250,1748962240434,-246.71549812,0.0002205,2]
[364022251,1748962240453,-441.78,0.0002205,2]
[364022252,1748962240463,-430.0,0.0002205,2]
[364022253,1748962240472,-198.0,0.00022062,2]
[364022254,1748962240484,-440.0,0.00022095,2]
[364022255,1748962240495,-392.24,0.00022095,2]
[364022256,1748962240506,-201.63,0.00022095,2]
[364022257,1748962240517,-440.0,0.00022095,2]
[364022258,1748962240526,-206.81631361,0.00022178,6]
[364022259,1748962240536,-420.0,0.00022321,2]
[364022260,1748962240545,-420.0,0.00022321,2]
[364022261,1748962240556,-420.0,0.00022321,2]
[364022262,1748962240566,-440.0,0.00022321,2]
[364022263,1748962240576,-425.15,0.00022321,2]
[364022264,1748962240586,-277.85,0.00022321,2]
[364022265,1748962240596,-440.0,0.00022321,2]
[364022266,1748962240606,-420.0,0.00022324,2]
[364022267,1748962240616,-287.85071538,0.00022324,2]
[364022268,1748962240626,-478.97257767,0.00022324,2]
[364022269,1748962240635,-440.0,0.00022369,2]
[364022270,1748962240645,-440.0,0.00022369,2]
[364022271,1748962240654,-206.81631361,0.00022567,7]
[364022272,1748962240665,-181.06,0.00022595,2]
[364022273,1748962240675,-440.0,0.00022595,2]
[364022274,1748962240686,-962.0,0.00022612,2]
[364022275,1748962240695,-709.0,0.00022612,2]
[364022276,1748962240707,-2225.0,0.00022612,2]
[364022277,1748962240718,-150.0,0.00022612,2]
[364022278,1748962240727,-500.0,0.00022629,2]
[364022279,1748962240736,-440.0,0.00022643,2]
[364022280,1748962240746,-440.0,0.00022643,2]
[364022281,1748962240755,-539.85306181,0.00022869,2]
[364022282,1748962240765,-440.0,0.00022917,2]
[364022283,1748962240774,-440.0,0.00022917,2]
[364022284,1748962240783,-206.81631361,0.00022956,8]
[364022285,1748962240793,-187.10792983,0.00023,7]
[364022286,1748962240802,-203.0,0.0002308,7]
[364022287,1748962240812,-223.0315306,0.00023138,2]
[364022288,1748962240822,-500.0,0.00023177,3]
[364022289,1748962240831,-440.0,0.00023191,2]
[364022290,1748962240841,-440.0,0.00023191,2]
[364022291,1748962240851,-206.81631361,0.00023344,9]
[364022292,1748962240861,-440.0,0.00023465,2]
[364022293,1748962240871,-440.0,0.00023465,2]
[364022294,1748962240880,-1397.287015,0.00023626,3]
[364022295,1748962240890,-500.0,0.00023725,4]
[364022296,1748962240899,-167.664,0.00023725,4]
[364022297,1748962240909,-206.81631361,0.00023733,9]
[364022299,1748962240919,-440.0,0.00023739,2]
[364022301,1748962240929,-440.0,0.00023739,2]
[364022303,1748962240938,-2000.0,0.000238,2]
[364022305,1748962240947,-2000.0,0.000238,2]
[364022306,1748962240959,-171.75,0.000238,31]
[364022308,1748962240969,-171.75,0.000238,31]
[364022309,1748962240979,-171.75,0.000238,31]
[364022310,1748962240989,-171.75,0.000238,31]
[364022311,1748962240999,-171.75,0.000238,31]
[364022312,1748962241009,-171.75,0.000238,31]
[364022313,1748962241019,-171.75,0.000238,31]
[364022314,1748962241028,-171.75,0.000238,31]
[364022315,1748962241038,-171.75,0.000238,31]
[364022316,1748962241048,-171.75,0.000238,31]
[364022317,1748962241057,-171.75,0.000238,31]
[364022318,1748962241067,-171.75,0.000238,31]
[364022319,1748962241077,-171.75,0.000238,31]
[364022320,1748962241087,-171.75,0.000238,31]
[364022321,1748962241097,-171.75,0.000238,31]
[364022322,1748962241107,-171.75,0.000238,31]
[364022323,1748962241117,-150.0,0.000238,30]
[364022324,1748962241127,-423.63107087,0.00023843,2]
[364022325,1748962241136,-160.0,0.00023843,2]
[364022326,1748962241147,-186.0,0.000239,10]
[364022327,1748962241156,-186.0,0.000239,14]
[364022328,1748962241167,-2000.0,0.00024,2]
[364022329,1748962241177,-158.14,0.00024,2]
[364022330,1748962241186,-440.0,0.00024013,2]
[364022331,1748962241197,-440.0,0.00024013,2]
[364022332,1748962241209,-158.14,0.00024082,2]
[364022333,1748962241219,-160.0,0.00024082,10]
[364022334,1748962241228,-229.42821335,0.00024082,10]
[364022335,1748962241238,-4713.83,0.00024082,10]
[364022336,1748962241247,-292.8,0.000241,2]
[364022337,1748962241257,-151.0,0.00024102,7]
[364022338,1748962241267,-151.0,0.00024102,7]
[364022339,1748962241277,-151.0,0.00024102,7]
[364022340,1748962241286,-151.0,0.00024102,7]
[364022341,1748962241295,-151.0,0.00024102,7]
[364022342,1748962241304,-151.0,0.00024102,7]
[364022343,1748962241314,-151.0,0.00024102,7]
[364022344,1748962241323,-151.0,0.00024102,7]
[364022345,1748962241334,-151.0,0.00024102,7]
[364022346,1748962241343,-151.0,0.00024102,7]
[364022347,1748962241353,-151.0,0.00024102,7]
[364022348,1748962241363,-211.34619,0.00024102,7]
[364022349,1748962241372,-151.0,0.00024102,7]
[364022350,1748962241382,-151.0,0.00024102,7]
[364022351,1748962241392,-151.0,0.00024102,7]
[364022352,1748962241401,-151.0,0.00024102,7]
[364022353,1748962241411,-151.0,0.00024102,7]
[364022354,1748962241423,-151.0,0.00024102,7]
[364022355,1748962241441,-151.0,0.00024102,7]
[364022356,1748962241456,-151.0,0.00024102,7]
[364022357,1748962241467,-151.0,0.00024102,7]
[364022358,1748962241476,-423.63107087,0.00024102,3]
[364022359,1748962241486,-160.0,0.00024102,3]
[364022360,1748962241496,-160.0,0.00024102,3]
[364022361,1748962241505,-12670.76136593,0.00024102,3]
[364022362,1748962241515,-229.42821335,0.00024102,3]
[364022363,1748962241525,-500.0,0.00024102,2]
[364022364,1748962241535,-561.9670738,0.00024102,2]
[364022365,1748962241545,-500.0,0.00024102,2]
[364022366,1748962241555,-500.0,0.00024102,2]
[364022367,1748962241564,-500.0,0.00024102,2]
[364022368,1748962241574,-500.0,0.00024102,2]
[364022369,1748962241584,-423.63107087,0.00024102,7]
[364022370,1748962241594,-151.0,0.00024103,7]
[364022371,1748962241604,-151.0,0.00024103,7]
[364022372,1748962241614,-151.0,0.00024103,7]
[364022373,1748962241624,-151.0,0.00024103,7]
[364022374,1748962241633,-154.105862,0.00024103,7]
[364022375,1748962241643,-154.105862,0.00024103,7]
[364022376,1748962241653,-154.105862,0.00024103,7]
[364022377,1748962241662,-154.105862,0.00024103,7]
[364022378,1748962241672,-154.105862,0.00024103,7]
[364022379,1748962241681,-154.105862,0.00024103,7]
[364022380,1748962241691,-154.105862,0.00024103,7]
[364022381,1748962241701,-154.105862,0.00024103,7]
[364022382,1748962241711,-154.105862,0.00024103,7]
[364022383,1748962241720,-154.105862,0.00024103,7]
[364022384,1748962241730,-154.105862,0.00024103,7]
[364022385,1748962241739,-154.105862,0.00024103,7]
[364022386,1748962241749,-154.105862,0.00024103,7]
[364022387,1748962241758,-154.105862,0.00024103,7]
[364022388,1748962241767,-154.105862,0.00024103,7]
[364022389,1748962241777,-154.105862,0.00024103,7]
[364022390,1748962241786,-154.105862,0.00024103,7]
[364022391,1748962241795,-154.105862,0.00024103,7]
[364022392,1748962241805,-154.105862,0.00024103,7]
[364022393,1748962241814,-154.105871,0.00024103,7]
[364022394,1748962241823,-160.0,0.00024103,3]
[364022395,1748962241833,-229.42821335,0.00024103,3]
[364022396,1748962241843,-160.0,0.00024103,7]
[364022397,1748962241852,-229.42821335,0.00024103,7]
[364022398,1748962241862,-46094.99192329,0.00024104,2]
[364022399,1748962241871,-42882.80220752,0.00024104,3]
[364022400,1748962241881,-1895663.07261515,0.00024104,20]
[364022401,1748962241896,-4466.2717165,0.00024104,20]
[364022402,1748962241907,-695.24,0.00024104,20]
[364022406,1748962241964,10000.0,0.00024658,120]
[364022409,1748962241989,-440.0,0.00020999,2]
[364022410,1748962241999,-420.0,0.00021273,2]
[364022411,1748962242010,-229.53491794,0.00022558,2]
[364022412,1748962242019,-405.0,0.00022612,2]
[364022414,1748962242029,-8071.78,0.00024082,10]
[364022415,1748962242038,-2125.7792688,0.00024104,20]
[364022416,1748962242050,-12736.005467,0.00024104,20]
[364022444,1748962243190,-229.42821335,0.00021985,2]
[364022445,1748962243200,-10749.31528764,0.00024104,20]
[364022446,1748962243214,-85113.33201403,0.00024104,20]
[364022463,1748962246211,-533.28514025,0.00021775,2]
[364022464,1748962246222,-440.0,0.00021776,2]
[364022465,1748962246232,-114823.90915286,0.00024104,20]
[364022469,1748962246354,-526.26505581,0.00024104,20]
[364022472,1748962246383,-4041.97,0.00024104,2]
[364022473,1748962246394,-47617.10930894,0.00024104,20]
[364022474,1748962246407,-53045.8788547,0.00024104,20]
[364022477,1748962267148,10000.0,0.00024658,120]
[364022478,1748962291036,10000.0,0.00024658,120]
[364022479,1748962306041,10000.0,0.00024658,120]
[364022480,1748962322745,10000.0,0.00024658,120]
[364022481,1748962471703,11437.2,0.00024657,120]
[364022483,1748962529247,500.0,0.0002312,120]
[364022484,1748962530031,500.0,0.0002312,120]
[364022485,1748962530808,500.0,0.0002312,120]
[364022486,1748962531590,500.0,0.0002312,120]
[364022487,1748962532361,500.0,0.0002312,120]
[364022488,1748962533603,500.0,0.0002312,120]
[364022489,1748962534536,500.0,0.0002312,120]
[364022490,1748962535234,500.0,0.0002312,120]
[364022491,1748962536006,500.0,0.0002312,120]
[364022492,1748962536790,500.0,0.0002312,120]
[364022493,1748962537563,500.0,0.0002312,120]
[364022494,1748962538355,500.0,0.0002312,120]
[364022495,1748962538597,1109.56630597,0.00024658,120]
[364022496,1748962539875,500.0,0.0002312,120]
[364022497,1748962540672,500.0,0.0002312,120]
[364022498,1748962541463,500.0,0.0002312,120]
[364022499,1748962542255,500.0,0.0002312,120]
[364022500,1748962543047,500.0,0.0002312,120]
[364022501,1748962543829,500.0,0.0002312,120]
[364022502,1748962544679,500.0,0.0002312,120]
[364022503,1748962545372,500.0,0.0002312,120]
[364022504,1748962546152,500.0,0.0002312,120]
[364022505,1748962546979,500.0,0.0002312,120]
[364022506,1748962547801,500.0,0.0002312,120]
[364022507,1748962548581,500.0,0.0002312,120]
[364022508,1748962549619,500.0,0.0002312,120]
[364022509,1748962550227,500.0,0.0002312,120]
[364022510,1748962551034,500.0,0.0002312,120]
[364022511,1748962551823,500.0,0.0002312,120]
[364022512,1748962552712,500.0,0.0002312,120]
[364022513,1748962553500,500.0,0.0002312,120]
[364022514,1748962554287,500.0,0.0002312,120]
[364022515,1748962555169,500.0,0.0002312,120]
[364022516,1748962555873,500.0,0.0002312,120]
[364022517,1748962556665,500.0,0.0002312,120]
[364022518,1748962557431,500.0,0.0002312,120]
[364022519,1748962558779,500.0,0.0002312,120]
[364022520,1748962559582,500.0,0.0002312,120]
[364022521,1748962560401,500.0,0.0002312,120]
[364022522,1748962561198,500.0,0.0002312,120]
[364022523,1748962561971,500.0,0.0002312,120]
[364022524,1748962562760,500.0,0.0002312,120]
[364022525,1748962563540,500.0,0.0002312,120]
[364022526,1748962564502,500.0,0.0002312,120]
[364022527,1748962565401,500.0,0.0002312,120]
[364022528,1748962566082,500.0,0.0002312,120]
[364022529,1748962566863,500.0,0.0002312,120]
[364022530,1748962567702,293.27,0.0002312,120]
[364022534,1748962633348,500.0,0.0002312,120]